fUST/lending_fUST_20241022
["ID","MTS","AMOUNT","RATE_DAILY","PERIOD"]
[340651254,1729597842291,-424.977493,0.0001589,2]
[340651255,1729597842300,-424.977493,0.0001589,2]
[340651256,1729597842309,-424.977493,0.0001589,2]
[340651257,1729597842318,-424.977493,0.0001589,2]
[340651258,1729597842328,-151.0,0.0001589,2]
[340651259,1729597842337,-271.512294,0.0001589,2]
[340651260,1729597842346,-242.118316,0.0001589,2]
[340651261,1729597842355,-271.512294,0.0001589,2]
[340651262,1729597842364,-242.118316,0.0001589,2]
[340651263,1729597842373,-547.169066,0.0001589,2]
[340651264,1729597842383,-151.0,0.0001589,2]
[340651265,1729597842394,-151.0,0.0001589,2]
[340651266,1729597842403,-151.0,0.0001589,2]
[340651267,1729597842414,-228.140244,0.0001589,2]
[340651268,1729597842423,-348.468933,0.0001589,2]
[340651269,1729597842432,-228.140244,0.0001589,2]
[340651270,1729597842442,-199.995233,0.0001589,2]
[340651271,1729597842451,-348.468933,0.0001589,2]
[340651272,1729597842466,-151.0,0.0001589,2]
[340651273,1729597842476,-597.267127,0.0001589,2]
[340651274,1729597842486,-682.66989,0.0001589,2]
[340651275,1729597842496,-597.267127,0.0001589,2]
[340651276,1729597842505,-682.66989,0.0001589,2]
[340651277,1729597842516,-151.0,0.0001589,2]
[340651278,1729597842525,-151.0,0.0001589,2]
[340651279,1729597842535,-991.129401,0.0001589,2]
[340651280,1729597842545,-991.129401,0.0001589,2]
[340651281,1729597842554,-359.789222,0.0001589,2]
[340651282,1729597842563,-151.0,0.0001589,2]
[340651283,1729597842572,-359.789222,0.0001589,2]
[340651285,1729597842582,-1058.755132,0.0001589,2]
[340651286,1729597842592,-151.0,0.0001589,2]
[340651287,1729597842602,-1058.755132,0.0001589,2]
[340651288,1729597842612,-160.481131,0.0001589,2]
[340651289,1729597842621,-500.0,0.0001589,2]
[340651290,1729597842630,-1031.739669,0.0001589,2]
[340651291,1729597842640,-1031.739669,0.0001589,2]
[340651292,1729597842648,-151.0,0.0001589,2]
[340651293,1729597842658,-151.0,0.0001589,2]
[340651294,1729597842667,-430.599617,0.0001589,2]
[340651296,1729597842676,-430.599617,0.0001589,2]
[340651297,1729597842685,-151.0,0.0001589,2]
[340651299,1729597842694,-1430.363105,0.0001589,2]
[340651300,1729597842704,-1430.363105,0.0001589,2]
[340651301,1729597842714,-250.0,0.0001589,2]
[340651302,1729597842724,-2300.0,0.000159,2]
[340651304,1729597842733,-395.590036,0.000159,2]
[340651306,1729597842742,-151.0,0.000159,2]
[340651308,1729597842751,-271.512294,0.000159,2]
[340651309,1729597842760,-242.118316,0.000159,2]
[340651311,1729597842772,-271.512294,0.000159,2]
[340651312,1729597842784,-242.118316,0.000159,2]
[340651313,1729597842794,-547.169066,0.000159,2]
[340651315,1729597842803,-151.0,0.000159,2]
[340651317,1729597842812,-151.0,0.000159,2]
[340651319,1729597842822,-151.0,0.000159,2]
[340651321,1729597842832,-228.140244,0.000159,2]
[340651322,1729597842841,-348.468933,0.000159,2]
[340651324,1729597842851,-228.140244,0.000159,2]
[340651325,1729597842860,-348.468933,0.000159,2]
[340651327,1729597842869,-227.697333,0.000159,2]
[340651329,1729597842878,-682.66989,0.000159,2]
[340651331,1729597842888,-682.66989,0.000159,2]
[340651333,1729597842897,-2300.0,0.00015929,2]
[340651335,1729597842907,-2300.0,0.0001595,2]
[340651336,1729597842916,-178.052345,0.0001599,2]
[340651337,1729597842926,-178.052345,0.0001599,2]
[340651338,1729597842937,-424.977493,0.0001599,2]
[340651339,1729597842947,-424.977493,0.0001599,2]
[340651340,1729597842957,-597.267127,0.0001599,2]
[340651341,1729597842967,-597.267127,0.0001599,2]
[340651342,1729597842976,-151.0,0.0001599,2]
[340651344,1729597842986,-991.129401,0.0001599,2]
[340651346,1729597842995,-991.129401,0.0001599,2]
[340651347,1729597843006,-359.789222,0.0001599,2]
[340651348,1729597843016,-151.0,0.0001599,2]
[340651349,1729597843025,-359.789222,0.0001599,2]
[340651350,1729597843035,-1058.755132,0.0001599,2]
[340651351,1729597843044,-151.0,0.0001599,2]
[340651352,1729597843054,-1058.755132,0.0001599,2]
[340651353,1729597843063,-1031.739669,0.0001599,2]
[340651354,1729597843072,-1031.739669,0.0001599,2]
[340651355,1729597843081,-151.0,0.0001599,2]
[340651356,1729597843090,-273.73072,0.0001599,2]
[340651357,1729597843099,-430.599617,0.0001599,2]
[340651358,1729597843109,-430.599617,0.0001599,2]
[340651359,1729597843118,-1430.363105,0.0001599,2]
[340651360,1729597843127,-1430.363105,0.0001599,2]
[340651361,1729597843136,-5000.0,0.00016,2]
[340651362,1729597843145,-151.0,0.00016,2]
[340651364,1729597843154,-152.947014,0.00016,2]
[340651366,1729597843163,-152.947014,0.00016,2]
[340651367,1729597843172,-151.0,0.00016,2]
[340651368,1729597843181,-151.0,0.00016,2]
[340651369,1729597843191,-395.590036,0.00016,2]
[340651370,1729597843200,-162.793429,0.00016,2]
[340651371,1729597843210,-271.512294,0.00016,2]
[340651372,1729597843219,-242.118316,0.00016,2]
[340651373,1729597843229,-271.512294,0.00016,2]
[340651374,1729597843238,-242.118316,0.00016,2]
[340651375,1729597843248,-547.169066,0.00016,2]
[340651376,1729597843257,-151.0,0.00016,2]
[340651377,1729597843268,-151.0,0.00016,2]
[340651378,1729597843278,-151.0,0.00016,2]
[340651379,1729597843287,-228.140244,0.00016,2]
[340651380,1729597843296,-348.468933,0.00016,2]
[340651381,1729597843306,-228.140244,0.00016,2]
[340651382,1729597843315,-348.468933,0.00016,2]
[340651383,1729597843324,-682.66989,0.00016,2]
[340651384,1729597843334,-682.66989,0.00016,2]
[340651385,1729597843343,-626.0,0.00016,2]
[340651386,1729597843353,-166.607377,0.00016,2]
[340651387,1729597843362,-151.0,0.00016001,2]
[340651388,1729597843372,-152.947014,0.00016001,2]
[340651389,1729597843381,-152.947014,0.00016001,2]
[340651390,1729597843390,-180.929426,0.00016001,2]
[340651391,1729597843399,-151.0,0.00016001,2]
[340651392,1729597843408,-151.0,0.00016001,2]
[340651393,1729597843418,-178.052345,0.00016001,2]
[340651394,1729597843427,-178.052345,0.00016001,2]
[340651395,1729597843437,-424.977493,0.00016001,2]
[340651396,1729597843447,-424.977493,0.00016001,2]
[340651397,1729597843456,-597.267127,0.00016001,2]
[340651398,1729597843467,-597.267127,0.00016001,2]
[340651399,1729597843477,-991.129401,0.00016001,2]
[340651400,1729597843486,-991.129401,0.00016001,2]
[340651401,1729597843495,-359.789222,0.00016001,2]
[340651402,1729597843505,-151.0,0.00016001,2]
[340651403,1729597843515,-359.789222,0.00016001,2]
[340651404,1729597843525,-1058.755132,0.00016001,2]
[340651405,1729597843536,-151.0,0.00016001,2]
[340651406,1729597843546,-1058.755132,0.00016001,2]
[340651407,1729597843555,-257.720286,0.00016012,2]
[340651408,1729597843565,-152.947014,0.00016012,2]
[340651409,1729597843575,-152.947014,0.00016012,2]
[340651410,1729597843585,-151.0,0.00016012,2]
[340651411,1729597843594,-395.590036,0.00016012,2]
[340651412,1729597843604,-271.512294,0.00016012,2]
[340651413,1729597843614,-242.118316,0.00016012,2]
[340651414,1729597843623,-271.512294,0.00016012,2]
[340651415,1729597843633,-242.118316,0.00016012,2]
[340651416,1729597843642,-547.169066,0.00016012,2]
[340651417,1729597843651,-264.203421,0.00016012,2]
[340651418,1729597843661,-151.0,0.00016012,2]
[340651419,1729597843670,-150.94,0.00016019,2]
[340651420,1729597843679,-531.179,0.00016019,2]
[340651421,1729597843689,-1804.0,0.00016019,2]
[340651422,1729597843698,-1025.843,0.00016019,2]
[340651423,1729597843707,-1031.739669,0.00016019,2]
[340651424,1729597843716,-1031.739669,0.00016019,2]
[340651425,1729597843725,-151.0,0.00016019,2]
[340651426,1729597843734,-430.599617,0.00016019,2]
[340651427,1729597843743,-430.599617,0.00016019,2]
[340651428,1729597843753,-1430.363105,0.00016019,2]
[340651429,1729597843763,-1430.363105,0.00016019,2]
[340651430,1729597843774,-151.0,0.0001602,2]
[340651431,1729597843783,-228.140244,0.0001602,2]
[340651432,1729597843793,-348.468933,0.0001602,2]
[340651433,1729597843803,-228.140244,0.0001602,2]
[340651434,1729597843812,-348.468933,0.0001602,2]
[340651435,1729597843823,-682.66989,0.0001602,2]
[340651436,1729597843832,-682.66989,0.0001602,2]
[340651437,1729597843842,-2300.0,0.0001603,2]
[340651438,1729597843851,-991.129401,0.0001603,2]
[340651439,1729597843860,-991.129401,0.0001603,2]
[340651440,1729597843869,-359.789222,0.0001603,2]
[340651441,1729597843879,-151.0,0.0001603,2]
[340651442,1729597843888,-359.789222,0.0001603,2]
[340651443,1729597843897,-1058.755132,0.0001603,2]
[340651444,1729597843907,-151.0,0.0001603,2]
[340651445,1729597843916,-1058.755132,0.0001603,2]
[340651446,1729597843926,-2300.0,0.0001605,2]
[340651447,1729597843938,-597.267127,0.0001605,2]
[340651448,1729597843948,-597.267127,0.0001605,2]
[340651449,1729597843957,-152.947014,0.00016051,2]
[340651450,1729597843966,-152.947014,0.00016051,2]
[340651451,1729597843976,-151.0,0.00016051,2]
[340651452,1729597843985,-178.052345,0.00016051,2]
[340651453,1729597843995,-178.052345,0.00016051,2]
[340651454,1729597844004,-424.977493,0.00016051,2]
[340651455,1729597844013,-424.977493,0.00016051,2]
[340651456,1729597844024,-395.590036,0.00016051,2]
[340651457,1729597844033,-271.512294,0.00016051,2]
[340651458,1729597844042,-242.118316,0.00016051,2]
[340651459,1729597844051,-271.512294,0.00016051,2]
[340651460,1729597844060,-242.118316,0.00016051,2]
[340651461,1729597844070,-547.169066,0.00016051,2]
[340651462,1729597844079,-151.0,0.00016051,2]
[340651463,1729597844089,-151.0,0.00016051,2]
[340651464,1729597844098,-228.140244,0.00016051,2]
[340651465,1729597844108,-348.468933,0.00016051,2]
[340651466,1729597844118,-228.140241,0.00016051,2]
[340651467,1729597844127,-348.468935,0.00016051,2]
[340651468,1729597844136,-597.267127,0.00016051,2]
[340651469,1729597844147,-682.66989,0.00016051,2]
[340651470,1729597844156,-597.26713,0.00016051,2]
[340651471,1729597844165,-682.669897,0.00016051,2]
[340651472,1729597844174,-991.129401,0.00016051,2]
[340651473,1729597844184,-991.129397,0.00016051,2]
[340651474,1729597844193,-359.789222,0.00016051,2]
[340651475,1729597844203,-151.0,0.00016051,2]
[340651476,1729597844212,-359.789231,0.00016051,2]
[340651477,1729597844221,-1058.755132,0.00016051,2]
[340651478,1729597844230,-151.0,0.00016051,2]
[340651479,1729597844240,-1058.755138,0.00016051,2]
[340651480,1729597844249,-1031.739669,0.00016051,2]
[340651481,1729597844258,-1031.739673,0.00016051,2]
[340651482,1729597844269,-151.0,0.00016051,2]
[340651483,1729597844279,-430.599617,0.00016051,2]
[340651484,1729597844288,-430.599608,0.00016051,2]
[340651485,1729597844298,-1430.363105,0.00016051,2]
[340651486,1729597844307,-1430.363098,0.00016051,2]
[340651487,1729597844317,-916.61340445,0.00016054,2]
[340651488,1729597844327,-2000.0,0.00016115,2]
[340651489,1729597844336,-500.78869717,0.00016147,2]
[340651490,1729597844346,-500.85702028,0.00016147,2]
[340651491,1729597844355,-1000.0,0.00016147,2]
[340651492,1729597844365,-1000.65419678,0.00016147,2]
[340651493,1729597844374,-526.00497442,0.00016147,2]
[340651494,1729597844431,-1000.0,0.00016147,2]
[340651495,1729597844441,-500.23904568,0.00016147,2]
[340651496,1729597844450,-501.47772528,0.00016147,2]
[340651497,1729597844459,-500.0,0.00016147,2]
[340651498,1729597844470,-1000.0,0.00016147,2]
[340651499,1729597844479,-1000.0,0.00016147,2]
[340651500,1729597844488,-1000.0,0.00016147,2]
[340651501,1729597844498,-504.08147176,0.00016147,2]
[340651502,1729597844507,-1000.0,0.00016147,2]
[340651503,1729597844516,-600.62091516,0.0001629,2]
[340651504,1729597844526,-2276.64295654,0.00016305,2]
[340651505,1729597844535,-600.0,0.00016307,2]
[340651506,1729597844544,-1014.7013328,0.00016365,2]
[340651507,1729597844553,-823.0,0.00016399,2]
[340651508,1729597844562,-300.546686,0.000164,6]
[340651509,1729597844571,-34419.7949994,0.00016405,2]
[340651510,1729597844581,-152.947014,0.00016405,2]
[340651511,1729597844590,-152.947014,0.00016405,2]
[340651512,1729597844599,-151.0,0.00016405,2]
[340651513,1729597844609,-178.052345,0.00016405,2]
[340651514,1729597844618,-178.052345,0.00016405,2]
[340651515,1729597844627,-424.977493,0.00016405,2]
[340651516,1729597844636,-424.977493,0.00016405,2]
[340651517,1729597844646,-395.59003673,0.00016405,2]
[340651518,1729597844655,-271.512294,0.00016405,2]
[340651519,1729597844665,-242.118316,0.00016405,2]
[340651520,1729597844674,-271.512296,0.00016405,2]
[340651521,1729597844684,-242.11832,0.00016405,2]
[340651522,1729597844693,-547.169066,0.00016405,2]
[340651523,1729597844703,-151.0,0.00016405,2]
[340651524,1729597844713,-444.12494021,0.00016428,2]
[340651525,1729597844723,-2873.0,0.00016438,2]
[340651526,1729597844732,-2873.0,0.00016438,2]
[340651527,1729597844741,-2873.0,0.00016438,2]
[340651528,1729597844750,-2873.0,0.00016438,2]
[340651529,1729597844761,-2873.0,0.00016438,2]
[340651530,1729597844773,-2873.0,0.00016438,2]
[340651531,1729597844783,-2873.0,0.00016438,2]
[340651532,1729597844792,-2873.0,0.00016438,2]
[340651533,1729597844802,-2873.0,0.00016438,2]
[340651534,1729597844812,-2880.17,0.00016438,2]
[340651535,1729597844822,-501.37606699,0.00016438,2]
[340651536,1729597844831,-501.94710433,0.00016438,2]
[340651537,1729597844842,-502.03080073,0.00016438,2]
[340651538,1729597844852,-500.0,0.00016438,2]
[340651539,1729597844861,-501.55450367,0.00016438,2]
[340651540,1729597844872,-501.48164625,0.00016438,2]
[340651541,1729597844882,-500.62138596,0.00016438,2]
[340651542,1729597844892,-501.626354,0.00016438,2]
[340651543,1729597844901,-501.68943993,0.00016438,2]
[340651544,1729597844910,-501.62015764,0.00016438,2]
[340651545,1729597844920,-500.0,0.00016438,2]
[340651546,1729597844933,-500.0,0.00016438,2]
[340651547,1729597844943,-346.0,0.00016438,2]
[340651548,1729597844952,-500.0,0.00016438,2]
[340651549,1729597844961,-502.2639229,0.00016438,2]
[340651550,1729597844971,-500.0,0.00016438,2]
[340651551,1729597844980,-500.0,0.00016438,2]
[340651552,1729597844989,-500.0,0.00016438,2]
[340651553,1729597844998,-501.65863108,0.00016438,2]
[340651554,1729597845009,-500.32988118,0.00016438,2]
[340651555,1729597845019,-502.83486527,0.00016438,2]
[340651556,1729597845028,-500.51933008,0.00016438,2]
[340651557,1729597845037,-500.0,0.00016438,2]
[340651558,1729597845046,-501.25363604,0.00016438,2]
[340651559,1729597845056,-501.76169157,0.00016438,2]
[340651560,1729597845065,-501.01770179,0.00016438,2]
[340651561,1729597845074,-501.19692512,0.00016438,2]
[340651562,1729597845085,-553.87498595,0.00016438,2]
[340651563,1729597845094,-500.0,0.00016438,2]
[340651564,1729597845104,-500.0,0.00016438,2]
[340651565,1729597845114,-501.62109286,0.00016438,2]
[340651566,1729597845123,-505.98180425,0.00016438,2]
[340651567,1729597845133,-500.9298225,0.00016438,2]
[340651568,1729597845141,-500.0,0.00016438,2]
[340651569,1729597845151,-501.71768196,0.00016438,2]
[340651570,1729597845161,-502.45158765,0.00016438,2]
[340651571,1729597845170,-479.87302252,0.00016438,2]
[340651572,1729597845179,-501.02101976,0.00016438,2]
[340651573,1729597845191,-569.29620012,0.00016438,2]
[340651574,1729597845200,-500.44001316,0.00016438,2]
[340651575,1729597845211,-504.70480448,0.00016438,2]
[340651576,1729597845220,-506.07058054,0.00016438,2]
[340651577,1729597845230,-513.53234335,0.00016438,2]
[340651578,1729597845240,-500.0,0.00016438,2]
[340651579,1729597845249,-301.66839377,0.00016438,2]
[340651580,1729597845259,-502.24598283,0.00016438,2]
[340651581,1729597845270,-501.88149445,0.00016438,2]
[340651582,1729597845280,-503.61002184,0.00016438,2]
[340651583,1729597845289,-507.49514747,0.00016438,2]
[340651584,1729597845299,-501.43803928,0.00016438,2]
[340651585,1729597845309,-500.45382119,0.00016438,2]
[340651586,1729597845319,-504.51968974,0.00016438,2]
[340651587,1729597845329,-501.35882796,0.00016438,2]
[340651588,1729597845339,-500.0,0.00016438,2]
[340651589,1729597845349,-536.79657146,0.00016438,2]
[340651590,1729597845359,-250.0,0.00016438,2]
[340651591,1729597845369,-500.98596645,0.00016438,2]
[340651592,1729597845380,-500.32749254,0.00016438,2]
[340651594,1729597845390,-500.0,0.00016438,2]
[340651595,1729597845400,-502.9072766,0.00016438,2]
[340651596,1729597845410,-507.33398668,0.00016438,2]
[340651597,1729597845420,-700.25,0.00016438,2]
[340651598,1729597845431,-505.86260419,0.00016438,2]
[340651599,1729597845442,-500.0,0.00016438,2]
[340651600,1729597845452,-502.39193774,0.00016438,2]
[340651601,1729597845463,-409.00054354,0.00016438,2]
[340651602,1729597845473,-528.87539122,0.00016438,2]
[340651603,1729597845484,-868.91,0.00016438,2]
[340651604,1729597845494,-502.92176556,0.00016438,2]
[340651605,1729597845505,-502.2508684,0.00016438,2]
[340651606,1729597845515,-500.46673032,0.00016438,2]
[340651607,1729597845527,-500.0,0.00016438,2]
[340651608,1729597845537,-502.20645901,0.00016438,2]
[340651609,1729597845547,-152.947014,0.00016438,2]
[340651610,1729597845557,-500.0,0.00016438,2]
[340651612,1729597845567,-152.947014,0.00016438,2]
[340651613,1729597845577,-507.30702038,0.00016438,2]
[340651614,1729597845587,-152.947014,0.00016438,2]
[340651615,1729597845597,-500.52417656,0.00016438,2]
[340651616,1729597845607,-152.947014,0.00016438,2]
[340651617,1729597845617,-152.947014,0.00016438,2]
[340651618,1729597845626,-152.947004,0.00016438,2]
[340651619,1729597845636,-503.3827418,0.00016438,2]
[340651620,1729597845647,-500.0,0.00016438,2]
[340651621,1729597845656,-501.28106047,0.00016438,2]
[340651622,1729597845666,-501.860412,0.00016438,2]
[340651623,1729597845676,-506.35071455,0.00016438,2]
[340651625,1729597845686,-504.28447236,0.00016438,2]
[340651626,1729597845696,-1000.0,0.00016438,2]
[340651627,1729597845706,-509.69210023,0.00016438,2]
[340651628,1729597845717,-502.459252,0.00016438,2]
[340651629,1729597845727,-500.0,0.00016438,2]
[340651630,1729597845737,-500.0,0.00016438,2]
[340651632,1729597845748,-502.76034305,0.00016438,2]
[340651633,1729597845758,-500.0,0.00016438,2]
[340651634,1729597845768,-501.8646761,0.00016438,2]
[340651635,1729597845778,-501.77857544,0.00016438,2]
[340651636,1729597845789,-517.07494843,0.00016438,2]
[340651637,1729597845799,-500.0,0.00016438,2]
[340651639,1729597845810,-507.14812062,0.00016438,2]
[340651640,1729597845820,-504.18483072,0.00016438,2]
[340651641,1729597845830,-500.0,0.00016438,2]
[340651642,1729597845840,-501.84509629,0.00016438,2]
[340651643,1729597845849,-500.65555299,0.00016438,2]
[340651644,1729597845859,-501.04993214,0.00016438,2]
[340651645,1729597845869,-500.0,0.00016438,2]
[340651646,1729597845879,-501.03656369,0.00016438,2]
[340651647,1729597845889,-517.27386785,0.00016438,2]
[340651648,1729597845898,-500.76709012,0.00016438,2]
[340651649,1729597845908,-503.62001843,0.00016438,2]
[340651650,1729597845918,-502.02802069,0.00016438,2]
[340651652,1729597845928,-505.84819234,0.00016438,2]
[340651654,1729597845938,-500.0,0.00016438,2]
[340651656,1729597845948,-500.0,0.00016438,2]
[340651658,1729597845960,-500.34850981,0.00016438,2]
[340651659,1729597845970,-502.22416298,0.00016438,2]
[340651660,1729597845980,-502.69448949,0.00016438,2]
[340651661,1729597845990,-502.58686842,0.00016438,2]
[340651662,1729597846001,-554.79349862,0.00016438,2]
[340651663,1729597846011,-500.0,0.00016438,2]
[340651664,1729597846022,-501.28502327,0.00016438,2]
[340651665,1729597846032,-500.51546112,0.00016438,2]
[340651666,1729597846042,-500.63408387,0.00016438,2]
[340651667,1729597846052,-502.39805015,0.00016438,2]
[340651668,1729597846063,-513.4810193,0.00016438,2]
[340651669,1729597846073,-507.75897318,0.00016438,2]
[340651670,1729597846083,-503.47083821,0.00016438,2]
[340651671,1729597846094,-500.33856322,0.00016438,2]
[340651672,1729597846104,-509.62083695,0.00016438,2]
[340651673,1729597846114,-501.11187807,0.00016438,2]
[340651674,1729597846124,-500.0,0.00016438,2]
[340651675,1729597846134,-502.64477077,0.00016438,2]
[340651676,1729597846144,-297.29549371,0.00016438,2]
[340651677,1729597846154,-501.11597421,0.00016438,2]
[340651678,1729597846164,-500.0,0.00016438,2]
[340651679,1729597846174,-942.77628809,0.00016438,2]
[340651680,1729597846185,-501.00535964,0.00016438,2]
[340651681,1729597846195,-501.04043037,0.00016438,2]
[340651682,1729597846205,-500.0,0.00016438,2]
[340651683,1729597846215,-501.7010638,0.00016438,2]
[340651684,1729597846225,-502.18283144,0.00016438,2]
[340651685,1729597846235,-500.0,0.00016438,2]
[340651686,1729597846245,-501.43359514,0.00016438,2]
[340651687,1729597846255,-502.01182853,0.00016438,2]
[340651688,1729597846265,-151.0,0.00016438,2]
[340651689,1729597846279,-508.57849871,0.00016438,2]
[340651690,1729597846290,-501.76915678,0.00016438,2]
[340651691,1729597846300,-502.22204014,0.00016438,2]
[340651692,1729597846310,-500.0,0.00016438,2]
[340651693,1729597846320,-500.60891612,0.00016438,2]
[340651694,1729597846330,-508.18562965,0.00016438,2]
[340651695,1729597846340,-500.0,0.00016438,2]
[340651696,1729597846349,-500.0,0.00016438,2]
[340651697,1729597846359,-500.0,0.00016438,2]
[340651698,1729597846370,-499.61266889,0.00016438,2]
[340651699,1729597846380,-508.04618628,0.00016438,2]
[340651700,1729597846390,-593.13056648,0.00016438,2]
[340651701,1729597846401,-500.0,0.00016438,2]
[340651702,1729597846411,-500.0,0.00016438,2]
[340651703,1729597846421,-500.0,0.00016438,2]
[340651704,1729597846432,-502.67786676,0.00016438,2]
[340651705,1729597846442,-505.62302566,0.00016438,2]
[340651706,1729597846453,-543.52,0.00016438,2]
[340651707,1729597846469,-502.52622927,0.00016438,2]
[340651708,1729597846482,-503.36715593,0.00016438,2]
[340651709,1729597846495,-500.82479076,0.00016438,2]
[340651710,1729597846508,-501.62840779,0.00016438,2]
[340651711,1729597846521,-502.92319714,0.00016438,2]
[340651712,1729597846531,-500.0,0.00016438,2]
[340651713,1729597846543,-504.31584631,0.00016438,2]
[340651714,1729597846555,-500.0,0.00016438,2]
[340651715,1729597846567,-500.0,0.00016438,2]
[340651716,1729597846580,-500.15359405,0.00016438,2]
[340651717,1729597846592,-501.10434341,0.00016438,2]
[340651718,1729597846605,-500.35176414,0.00016438,2]
[340651719,1729597846616,-502.13471049,0.00016438,2]
[340651720,1729597846628,-504.78287327,0.00016438,2]
[340651721,1729597846642,-500.0,0.00016438,2]
[340651722,1729597846656,-516.23190923,0.00016438,2]
[340651723,1729597846668,-501.40363839,0.00016438,2]
[340651724,1729597846680,-501.20032592,0.00016438,2]
[340651725,1729597846693,-178.052345,0.00016438,2]
[340651726,1729597846705,-599.85773726,0.00016438,2]
[340651727,1729597846717,-502.42499629,0.00016438,2]
[340651728,1729597846730,-503.38194455,0.00016438,2]
[340651729,1729597846743,-500.46160229,0.00016438,2]
[340651730,1729597846755,-178.052345,0.00016438,2]
[340651731,1729597846767,-502.16321268,0.00016438,2]
[340651732,1729597846780,-500.0,0.00016438,2]
[340651733,1729597846790,-505.17078555,0.00016438,2]
[340651734,1729597846802,-502.55125694,0.00016438,2]
[340651735,1729597846814,-500.17051962,0.00016438,2]
[340651736,1729597846826,-500.0,0.00016438,2]
[340651737,1729597846838,-500.0,0.00016438,2]
[340651738,1729597846851,-500.0,0.00016438,2]
[340651739,1729597846865,-502.80525771,0.00016438,2]
[340651740,1729597846876,-500.0,0.00016438,2]
[340651741,1729597846888,-500.0,0.00016438,2]
[340651742,1729597846900,-502.11605862,0.00016438,2]
[340651743,1729597846914,-500.0,0.00016438,2]
[340651744,1729597846926,-505.9729748,0.00016438,2]
[340651745,1729597846943,-500.0,0.00016438,2]
[340651746,1729597846953,-503.01247905,0.00016438,2]
[340651747,1729597846963,-1265.24,0.00016438,2]
[340651748,1729597846974,-500.0,0.00016438,2]
[340651749,1729597846985,-500.0,0.00016438,2]
[340651750,1729597846996,-835.97,0.00016438,2]
[340651751,1729597847008,-503.167712,0.00016438,2]
[340651752,1729597847023,-503.21122686,0.00016438,2]
[340651753,1729597847036,-500.0,0.00016438,2]
[340651754,1729597847047,-500.0,0.00016438,2]
[340651755,1729597847058,-500.0,0.00016438,2]
[340651756,1729597847070,-616.49,0.00016438,2]
[340651757,1729597847081,-500.0,0.00016438,2]
[340651758,1729597847092,-508.0145817,0.00016438,2]
[340651759,1729597847105,-501.17532251,0.00016438,2]
[340651760,1729597847117,-500.0,0.00016438,2]
[340651761,1729597847128,-502.64026313,0.00016438,2]
[340651762,1729597847139,-500.0,0.00016438,2]
[340651763,1729597847150,-1077.27,0.00016438,2]
[340651764,1729597847162,-500.0,0.00016438,2]
[340651765,1729597847173,-521.03239473,0.00016438,2]
[340651766,1729597847184,-424.977493,0.00016438,2]
[340651767,1729597847196,-500.53134249,0.00016438,2]
[340651768,1729597847207,-500.56567881,0.00016438,2]
[340651769,1729597847219,-503.27197622,0.00016438,2]
[340651770,1729597847230,-500.0,0.00016438,2]
[340651771,1729597847241,-501.47455694,0.00016438,2]
[340651772,1729597847252,-424.977487,0.00016438,2]
[340651773,1729597847263,-503.56938589,0.00016438,2]
[340651774,1729597847274,-500.26872729,0.00016438,2]
[340651775,1729597847285,-589.61100186,0.00016438,2]
[340651776,1729597847298,-500.0,0.00016438,2]
[340651777,1729597847310,-609.63,0.00016438,2]
[340651778,1729597847322,-701.08,0.00016438,2]
[340651779,1729597847334,-500.0,0.00016438,2]
[340651780,1729597847345,-503.67878093,0.00016438,2]
[340651781,1729597847356,-500.0,0.00016438,2]
[340651782,1729597847379,-500.0,0.00016438,2]
[340651783,1729597847393,-500.0,0.00016438,2]